[Event "IIFL WEALTH VI Mumbai Open 2021"]
[Site "Mumbai"]
[Date "2022.01.04"]
[Round "6.4"]
[White "Jain, Kushagra"]
[Black "Rachit H Gurnani"]
[Result "0-1"]
[ECO "C98"]
[WhiteElo "1468"]
[BlackElo "1840"]
[Annotator "NA RC"]
[PlyCount "150"]
[EventDate "2021.12.30"]
[EventType "swiss"]
[EventCountry "IND"]
[SourceTitle "playchess.com"]
[Source "ChessBase"]
[SourceQuality "1"]
[TimeControl "5400+30"]

1. e4 {[%emt 0:00:09]} e5 {[%emt 0:01:08]} 2. Nf3 {[%emt 0:00:05]} Nc6 {[%emt 0:00:03]} 3. Bb5 {[%emt 0:00:05]} a6 {[%emt 0:00:05]} 4. Ba4 {[%emt 0:00:04]} Nf6 {[%emt 0:00:11]} 5. O-O {[%emt 0:00:06]} Be7 {[%emt 0:00:08]} 6. Re1 {[%emt 0:00:34]} b5 {[%emt 0:00:04]} 7. Bb3 {[%emt 0:00:05]} d6 {[%emt 0:00:04]} 8. c3 {[%emt 0:00:05]} O-O {[%emt 0:00:33]} 9. h3 {[%emt 0:00:12]} Na5 {[%emt 0:00:10]} 10. Bc2 $1 {[%emt 0:00:14]} c5 {[%emt 0:00:01]} 11. d4 {[%emt 0:00:17]} Qc7 {[%emt 0:00:10]} 12. Nbd2 {[%emt 0:00:30]} Nc6 {[%emt 0:01:34]} 13. d5 {[%emt 0:04:37]} Nd8 {[%emt 0:02:35]} 14. Nf1 {[%emt 0:05:27]} Ne8 {[%emt 0:00:14]} 15. Be3 {[%emt 0:14:23]} g6 {[%emt 0:03:00]} 16. a4 {[%emt 0:08:20]} Rb8 {[%emt 0:02:17]} 17. axb5 {[%emt 0:08:25]} axb5 {[%emt 0:00:12]} 18. b4 {[%emt 0:01:23]} Ng7 {[%emt 0:13:00]} 19. Qe2 {[%emt 0:07:05]} f6 {[%emt 0:19:13]} 20. Reb1 {[%emt 0:05:10]} c4 {[%emt 0:07:52]} 21. Ra7 {[%emt 0:04:59]} Rb7 {[%emt 0:03:30]} 22. Rba1 {[%emt 0:01:28]} f5 {[%emt 0:03:06]} 23. Rxb7 {[%emt 0:05:03]} Bxb7 {[%emt 0:04:32]} 24. Bh6 {[%emt 0:04:06]} f4 {[%emt 0:03:52]} 25. Ra5 {[%emt 0:08:39]} Qd7 {[%emt 0:02:17]} 26. N3d2 {[%emt 0:01:06]} Nf7 {[%emt 0:01:35]} 27. Bxg7 {[%emt 0:00:17]} Kxg7 {[%emt 0:00:02]} 28. Qg4 {[%emt 0:05:33]} Qe8 {[%emt 0:03:00]} 29. Qd1 {[%emt 0:04:47]} Bd8 {[%emt 0:02:33]} 30. Ra7 {[%emt 0:00:25]} Qe7 {[%emt 0:00:22]} 31. Qe2 {[%emt 0:04:21]} Bb6 {[%emt 0:00:27]} 32. Ra1 {[%emt 0:00:22]} h5 {[%emt 0:02:58]} 33. Nh2 {[%emt 0:00:28]} Rh8 {[%emt 0:04:28]} 34. Bd1 {[%emt 0:01:40]} Kf8 {[%emt 0:05:26]} 35. Qe1 {[%emt 0:00:18]} Ke8 {[%emt 0:00:29]} (35... Qf6 $142 36. Bf3 g5) 36. Be2 {[%emt 0:00:12] [#]} Kd8 {[%emt 0:00:57]} ({Better is} 36... g5 $1 $17) 37. Qd1 {[%emt 0:00:13]} Kc8 {[%emt 0:00:15]} 38. Ndf1 $2 {[%emt 0:01:06]} (38. Ra2 $17 {was the only defense.}) 38... Kb8 $2 {[%emt 0:00:57]} ({Black should play} 38... Qh4 $19 39. Qe1 Ng5) 39. Ra2 {[%emt 0:00:27]} Nh6 {[%emt 0:02:23]} (39... Qh4 $19 40. Nf3 Qxf2+ 41. Kh1 {[#]} Ng5 $1 {[%mdl 512]}) 40. Rd2 $2 {[%emt 0:03:30]} (40. Nd2 $17 {was worth a try.}) 40... Ng8 {[%emt 0:00:29]} 41. Ra2 {[%emt 0:01:40]} Nf6 {[%emt 0:01:01]} 42. Bf3 {[%emt 0:00:40]} Bc8 {[%emt 0:04:25]} 43. Qa1 {[%emt 0:00:19]} g5 {[%emt 0:02:14]} 44. Qd1 {[%emt 0:01:24]} g4 {[%emt 0:04:55]} 45. hxg4 {[%emt 0:00:16]} hxg4 {[%emt 0:00:01]} 46. Bxg4 {[%emt 0:00:19]} Nxg4 {[%emt 0:02:52]} 47. Nxg4 {[%emt 0:00:07]} Qh4 {[%emt 0:00:02]} 48. Ngh2 {[%emt 0:00:13]} Rg8 {[%emt 0:00:28]} 49. Qa1 {[%emt 0:01:46]} Qh3 {[%emt 0:00:39]} (49... Bh3 $142 50. Ne3 fxe3 51. fxe3 Bxe3+ 52. Kh1 Bc8 53. Ra8+ Kc7) 50. Ra8+ {[%emt 0:00:49]} Kc7 {[%emt 0:00:01]} 51. Rxc8+ {[%emt 0:00:21]} Qxc8 {[%emt 0:00:07]} 52. Qd1 {[%emt 0:00:16]} Qh3 {[%emt 0:00:55]} 53. Qf3 {[%emt 0:00:03]} Qh4 {[%emt 0:01:13]} 54. g3 {[%emt 0:01:17]} Qh3 {[%emt 0:00:51]} 55. Kh1 {[%emt 0:00:32]} Rh8 {[%emt 0:00:58]} 56. Qg2 {[%emt 0:00:13]} Qxg2+ {[%emt 0:01:03]} 57. Kxg2 {[%emt 0:00:05]} Ra8 {[%emt 0:00:25]} 58. gxf4 {[%emt 0:01:00]} exf4 {[%emt 0:00:01]} 59. Kf3 {[%emt 0:00:15]} Ra3 {[%emt 0:00:30]} 60. Kxf4 {[%emt 0:00:04]} Bxf2 {[%emt 0:00:16]} 61. e5 {[%emt 0:00:17]} dxe5+ {[%emt 0:00:22]} 62. Kxe5 {[%emt 0:00:05]} Rxc3 {[%emt 0:00:15]} 63. d6+ {[%emt 0:00:03]} Kd8 {[%emt 0:00:23]} 64. Ng4 {[%emt 0:00:07]} Bg1 {[%emt 0:01:04]} 65. Ke6 {[%emt 0:00:07]} Rd3 $19 {[%emt 0:01:12]} (65... Rc1 $142 66. Nd2 Re1+ 67. Kf5 c3) 66. Ne5 {[%emt 0:00:09]} Rd1 {[%emt 0:00:01]} 67. Ng3 {[%emt 0:00:36]} c3 {[%emt 0:00:53]} 68. Ne2 {[%emt 0:01:13]} c2 {[%emt 0:00:12]} 69. Nc1 {[%emt 0:00:14]} Bh2 {[%emt 0:00:31]} 70. Nf7+ {[%emt 0:01:02]} Kc8 {[%emt 0:00:51]} 71. Nb3 {[%emt 0:00:19]} Re1+ {[%emt 0:00:18]} 72. Kf6 {[%emt 0:00:07]} Rb1 {[%emt 0:00:42]} 73. Nc5 {[%emt 0:00:30]} Rf1+ {[%emt 0:00:17]} 74. Ke6 {[%emt 0:00:06]} Rxf7 {[%emt 0:00:09]} 75. Kxf7 {[%emt 0:00:08]} c1=Q {[%emt 0:00:07]} 0-1

[Event "IIFL WEALTH VI Mumbai Open 2021"]
[Site "Mumbai"]
[Date "2022.01.04"]
[Round "6.5"]
[White "Bajaj Prakhar"]
[Black "Pawar Sohum"]
[Result "1-0"]
[ECO "C47"]
[WhiteElo "1663"]
[BlackElo "1506"]
[Annotator "NA RC"]
[PlyCount "113"]
[EventDate "2021.12.30"]
[EventType "swiss"]
[EventCountry "IND"]
[SourceTitle "playchess.com"]
[Source "ChessBase"]
[SourceQuality "1"]
[TimeControl "5400+30"]

1. e4 {[%emt 0:00:06]} e5 {[%emt 0:00:19]} 2. Nf3 {[%emt 0:00:07]} Nc6 {[%emt 0:00:18]} 3. Nc3 {[%emt 0:00:39]} Nf6 {[%emt 0:01:07]} 4. d4 {[%emt 0:00:08]} exd4 {[%emt 0:00:02]} 5. Nxd4 {[%emt 0:00:08]} Bb4 {[%emt 0:00:30]} 6. Nxc6 {[%emt 0:00:06]} bxc6 {[%emt 0:00:08]} 7. Bd3 {[%emt 0:00:06]} d5 {[%emt 0:00:57]} 8. exd5 {[%emt 0:00:09]} cxd5 {[%emt 0:00:02]} 9. O-O {[%emt 0:00:08]} O-O {[%emt 0:00:18]} 10. h3 {[%emt 0:00:04]} h6 {[%emt 0:00:30]} 11. Qf3 {[%emt 0:00:07]} c6 {[%emt 0:09:04]} 12. Bf4 {[%emt 0:09:03]} Bd6 {[%emt 0:05:19]} 13. Rfe1 {[%emt 0:10:07]} Rb8 {[%emt 0:01:28]} 14. b3 {[%emt 0:00:06]} Be6 {[%emt 0:13:37]} 15. Rad1 {[%emt 0:25:34]} Rb4 {[%emt 0:07:24]} 16. Bxd6 {[%emt 0:09:32]} Qxd6 {[%emt 0:00:03]} 17. Qe3 {[%emt 0:04:57]} d4 {[%emt 0:19:50]} 18. Ne4 {[%emt 0:00:58]} dxe3 {[%emt 0:00:49]} 19. Nxd6 {[%emt 0:00:07]} exf2+ {[%emt 0:00:06]} 20. Kxf2 {[%emt 0:00:06]} Nd5 {[%emt 0:06:22]} 21. a3 {[%emt 0:15:34]} Rf4+ {[%emt 0:05:34]} 22. Kg3 {[%emt 0:02:30]} Rf6 {[%emt 0:00:07]} 23. Ne4 {[%emt 0:09:04]} Rg6+ {[%emt 0:01:10]} 24. Kf3 {[%emt 0:02:51]} h5 {[%emt 0:07:28]} 25. c4 {[%emt 0:04:21]} Ne7 {[%emt 0:05:21]} 26. Nc5 {[%emt 0:01:15]} Rf6+ {[%emt 0:00:10]} 27. Kg3 {[%emt 0:00:25]} Rb8 {[%emt 0:09:05]} 28. Be4 {[%emt 0:00:30]} g5 {[%emt 0:03:38]} 29. Rd3 {[%emt 0:02:38]} Kg7 {[%emt 0:02:13]} 30. Kh2 {[%emt 0:00:28]} h4 {[%emt 0:00:29]} 31. Bf3 {[%emt 0:01:15]} Rc8 {[%emt 0:01:27]} 32. Nxe6+ {[%emt 0:00:57]} fxe6 {[%emt 0:00:44]} 33. Rd7 {[%emt 0:00:04]} Kf8 {[%emt 0:00:12]} 34. Rxa7 {[%emt 0:00:06]} Nf5 {[%emt 0:00:20]} 35. b4 {[%emt 0:00:59]} Nd4 {[%emt 0:00:34]} 36. Bg4 {[%emt 0:00:24]} Rd8 {[%emt 0:00:20]} 37. Rd1 {[%emt 0:00:55]} Rf4 {[%emt 0:00:53]} 38. b5 {[%emt 0:01:27]} cxb5 {[%emt 0:00:31]} 39. cxb5 {[%emt 0:00:01]} Rb8 {[%emt 0:00:12]} 40. a4 {[%emt 0:00:11]} e5 {[%emt 0:00:24]} 41. Rc1 {[%emt 0:00:57]} e4 {[%emt 0:00:41]} 42. b6 {[%emt 0:00:08]} Rf2 {[%emt 0:00:58]} 43. b7 {[%emt 0:00:25]} Nf3+ {[%emt 0:00:34]} 44. Bxf3 {[%emt 0:01:01]} exf3 {[%emt 0:00:03]} 45. Ra8 {[%emt 0:00:34]} Rxg2+ {[%emt 0:00:12]} 46. Kh1 {[%emt 0:00:03]} Rg3 {[%emt 0:00:34]} 47. Rxb8+ {[%emt 0:00:04]} Ke7 {[%emt 0:00:13]} 48. Re8+ {[%emt 0:00:12]} Kxe8 {[%emt 0:00:07]} 49. b8=Q+ {[%emt 0:00:03]} Kf7 {[%emt 0:00:10]} 50. Rc7+ {[%emt 0:00:18]} Ke6 {[%emt 0:00:15]} 51. Qe8+ {[%emt 0:00:15]} Kd5 {[%emt 0:00:32]} 52. Rd7+ {[%emt 0:00:07]} Kc4 {[%emt 0:00:14]} 53. Qe4+ {[%emt 0:00:20]} Kc5 {[%emt 0:00:26]} 54. Rd5+ {[%emt 0:00:05]} Kc6 {[%emt 0:00:18]} 55. Qe6+ {[%emt 0:00:17]} Kb7 {[%emt 0:00:10]} 56. Rd7+ {[%emt 0:00:11]} Kc8 57. Qe8# 1-0

[Event "IIFL WEALTH VI Mumbai Open 2021"]
[Site "Mumbai"]
[Date "2022.01.05"]
[Round "7.1"]
[White "Iyer Arvind"]
[Black "Adireddy Arjun"]
[Result "0-1"]
[ECO "B22"]
[WhiteElo "1662"]
[BlackElo "1658"]
[Annotator "NA RC"]
[PlyCount "114"]
[EventDate "2021.12.30"]
[EventType "swiss"]
[EventCountry "IND"]
[SourceTitle "playchess.com"]
[Source "ChessBase"]
[SourceQuality "1"]
[TimeControl "5400+30"]

1. e4 c5 2. c3 Nf6 3. Qc2 Nc6 4. Nf3 e5 5. Bb5 Qc7 6. O-O Be7 7. h3 a6 8. Bxc6 bxc6 9. d4 cxd4 10. cxd4 exd4 11. Nxd4 O-O 12. Be3 Re8 13. Nd2 Bf8 14. Rfe1 Bb7 15. Bg5 Nh5 16. Rac1 Rac8 17. Qb3 h6 18. Qf3 g6 19. Be3 Qe5 20. Nc4 Qxe4 21. Qxe4 Rxe4 22. Nb6 c5 23. Nxc8 Bxc8 24. Nb3 d6 25. Red1 Be6 26. Nd2 Rb4 27. b3 Nf6 28. Nc4 Nd5 29. Bd2 Rb8 30. g4 f6 31. Rc2 Kf7 32. Ba5 Nf4 33. Nxd6+ Kg8 34. Bc7 Rb4 35. Nc4 Nxh3+ 36. Kg2 Bxg4 37. Rd8 Ng5 38. Rb8 Bf3+ 39. Kg3 Rxb8 40. Bxb8 Bd5 41. Nd2 Kf7 42. Rc3 Ne6 43. Rd3 Nd4 44. f3 g5 45. Kf2 h5 46. Ne4 g4 47. Ba7 Bxe4 48. fxe4 h4 49. b4 g3+ 50. Kf1 Ne6 51. bxc5 Bxc5 52. Bxc5 Nxc5 53. Rd4 Ne6 54. Rd1 Nf4 55. Kg1 h3 56. Re1 h2+ 57. Kh1 Nd3 0-1

[Event "IIFL WEALTH VI Mumbai Open 2021"]
[Site "Mumbai"]
[Date "2022.01.05"]
[Round "7.2"]
[White "Majumder Shrayan"]
[Black "Krishnan Ritvik"]
[Result "0-1"]
[ECO "E73"]
[WhiteElo "1669"]
[BlackElo "1750"]
[Annotator "NA RC"]
[PlyCount "48"]
[EventDate "2021.12.30"]
[EventType "swiss"]
[EventCountry "IND"]
[SourceTitle "playchess.com"]
[Source "ChessBase"]
[SourceQuality "1"]
[TimeControl "5400+30"]

1. d4 {[%emt 0:00:06]} Nf6 {[%emt 0:00:06]} 2. c4 {[%emt 0:00:09]} g6 {[%emt 0:00:07]} 3. Nc3 {[%emt 0:00:09]} Bg7 {[%emt 0:00:04]} 4. e4 {[%emt 0:00:08]} d6 {[%emt 0:00:04]} 5. Be2 {[%emt 0:00:13]} O-O {[%emt 0:00:06]} 6. Be3 {[%emt 0:00:06]} Na6 7. g4 {[%emt 0:04:02]} c5 {[%emt 0:12:47]} 8. d5 {[%emt 0:01:41]} e6 {[%emt 0:06:00]} 9. g5 {[%emt 0:02:39]} Nh5 {[%emt 0:00:28]} 10. Bxh5 {[%emt 0:07:03]} gxh5 {[%emt 0:00:10]} 11. Qxh5 {[%emt 0:10:23]} Nb4 {[%emt 0:02:58]} 12. Qd1 {[%emt 0:05:00]} exd5 {[%emt 0:01:50]} 13. cxd5 {[%emt 0:00:16]} c4 {[%emt 0:00:55]} 14. Nge2 {[%emt 0:14:30]} Nd3+ {[%emt 0:02:31]} 15. Kd2 {[%emt 0:00:20]} b5 {[%emt 0:07:59]} 16. a3 {[%emt 0:08:54]} Nxb2 {[%emt 0:10:58]} 17. Qg1 {[%emt 0:01:06]} Qa5 {[%emt 0:04:17]} 18. f4 {[%emt 0:11:15]} Na4 {[%emt 0:03:07]} 19. Bd4 {[%emt 0:01:17]} Bxd4 {[%emt 0:00:46]} 20. Qxd4 {[%emt 0:00:09]} Nc5 {[%emt 0:00:19]} 21. Rab1 {[%emt 0:05:08]} Qxa3 {[%emt 0:03:37]} 22. Nxb5 {[%emt 0:15:09]} Nb3+ {[%emt 0:01:59]} 23. Ke3 {[%emt 0:02:06]} Qb4 {[%emt 0:01:51]} 24. Nbc3 {[%emt 0:01:35]} Nxd4 {[%emt 0:00:15]} 0-1

[Event "IIFL WEALTH VI Mumbai Open 2021"]
[Site "Mumbai"]
[Date "2022.01.05"]
[Round "7.3"]
[White "Kulkarni, Vikramaditya"]
[Black "Mishra Sanjeev"]
[Result "1-0"]
[ECO "A05"]
[WhiteElo "2327"]
[BlackElo "1605"]
[Annotator "RC"]
[PlyCount "109"]
[EventDate "2021.12.30"]
[EventType "swiss"]
[EventCountry "IND"]
[SourceTitle "playchess.com"]
[Source "ChessBase"]
[SourceQuality "1"]
[TimeControl "5400+30"]

1. Nf3 {[%emt 0:07:03]} Nf6 {[%emt 0:00:12]} 2. g3 {[%emt 0:00:30]} b6 {[%emt 0:00:10]} 3. Bg2 {[%emt 0:00:22]} Bb7 {[%emt 0:00:06]} 4. O-O {[%emt 0:01:16]} e6 {[%emt 0:00:40]} 5. c4 {[%emt 0:00:52]} d5 {[%emt 0:00:25]} 6. cxd5 {[%emt 0:01:51]} exd5 {[%emt 0:00:08]} 7. d4 {[%emt 0:00:49]} Be7 {[%emt 0:01:03]} 8. Qa4+ {[%emt 0:00:55]} c6 {[%emt 0:00:41]} 9. Nh4 {[%emt 0:08:22]} O-O {[%emt 0:01:20]} 10. Nf5 {[%emt 0:00:37]} Re8 {[%emt 0:00:25]} 11. Nxe7+ {[%emt 0:00:45]} Qxe7 {[%emt 0:00:14]} 12. Nc3 {[%emt 0:02:33]} Nbd7 {[%emt 0:00:42]} 13. Bf4 {[%emt 0:06:07]} Nf8 {[%emt 0:02:51]} 14. Rad1 {[%emt 0:04:41]} Ne6 {[%emt 0:01:57]} 15. Bc1 {[%emt 0:06:35]} h6 {[%emt 0:06:25]} 16. Rfe1 {[%emt 0:06:50]} Red8 {[%emt 0:03:26]} 17. b4 {[%emt 0:09:34]} a5 {[%emt 0:03:47]} 18. b5 c5 {[%emt 0:01:18]} 19. Ba3 {[%emt 0:08:25]} Qc7 {[%emt 0:02:53]} 20. dxc5 {[%emt 0:01:16]} Nxc5 {[%emt 0:02:10]} 21. Qf4 {[%emt 0:00:22]} Qc8 {[%emt 0:18:03]} 22. Rc1 {[%emt 0:02:52]} d4 {[%emt 0:04:40]} 23. Na4 {[%emt 0:27:59]} Bxg2 {[%emt 0:01:41]} 24. Nxb6 {[%emt 0:00:03]} Qh3 {[%emt 0:00:33]} 25. Qh4 {[%emt 0:00:02]} Nce4 {[%emt 0:03:42]} 26. Nxa8 {[%emt 0:00:53]} Rxa8 {[%emt 0:00:02]} 27. Qxh3 {[%emt 0:01:15]} Bxh3 {[%emt 0:00:03]} 28. Bb2 {[%emt 0:00:15]} Be6 {[%emt 0:07:12]} 29. Bxd4 {[%emt 0:00:57]} Bxa2 {[%emt 0:01:09]} 30. b6 {[%emt 0:00:01]} Bd5 {[%emt 0:00:38]} 31. f3 {[%emt 0:00:16]} Ng5 {[%emt 0:02:18]} 32. Bxf6 gxf6 {[%emt 0:00:47]} 33. Red1 {[%emt 0:00:19]} Bb7 {[%emt 0:01:45]} 34. Rd7 {[%emt 0:01:26]} Rb8 {[%emt 0:02:28]} 35. Kf2 {[%emt 0:00:39]} Ne6 {[%emt 0:04:05]} 36. Ra1 {[%emt 0:00:35]} a4 {[%emt 0:02:12]} 37. Rd6 {[%emt 0:00:02]} Ra8 {[%emt 0:00:28]} 38. Rd7 {[%emt 0:00:34]} Rb8 {[%emt 0:00:18]} 39. Rxa4 {[%emt 0:00:47]} Bc6 {[%emt 0:01:02]} 40. Rg4+ {[%emt 0:00:05]} Kf8 {[%emt 0:00:03]} 41. Rd6 {[%emt 0:00:17]} Bb7 {[%emt 0:04:02]} 42. Ra4 {[%emt 0:00:32]} Ke7 {[%emt 0:02:09]} 43. Rd2 {[%emt 0:00:17]} Nc5 {[%emt 0:02:10]} 44. Rh4 {[%emt 0:00:19]} Bc8 {[%emt 0:01:31]} 45. Rc2 {[%emt 0:01:54]} Nd7 {[%emt 0:01:44]} 46. Rxh6 {[%emt 0:00:06]} Nxb6 {[%emt 0:00:15]} 47. Rh8 {[%emt 0:00:08]} Kd7 {[%emt 0:01:20]} 48. Rd2+ {[%emt 0:00:37]} Kc7 {[%emt 0:00:42]} 49. Rf8 {[%emt 0:01:21]} Be6 {[%emt 0:00:36]} 50. Rc2+ {[%emt 0:00:02]} Kb7 {[%emt 0:00:31]} 51. Rxb8+ {[%emt 0:00:08]} Kxb8 {[%emt 0:00:01]} 52. h4 {[%emt 0:00:24]} Nd7 {[%emt 0:00:03]} 53. h5 {[%emt 0:00:16]} Nf8 {[%emt 0:00:19]} 54. Ke3 {[%emt 0:01:21]} Nh7 {[%emt 0:00:11]} 55. h6 {[%emt 0:00:26]} 1-0

[Event "IIFL WEALTH VI Mumbai Open 2021"]
[Site "Mumbai"]
[Date "2022.01.05"]
[Round "7.4"]
[White "Rachit H Gurnani"]
[Black "Sharnarthi Viresh"]
[Result "1-0"]
[ECO "B92"]
[WhiteElo "1840"]
[BlackElo "1456"]
[Annotator "NA RC"]
[PlyCount "51"]
[EventDate "2021.12.30"]
[EventType "swiss"]
[EventCountry "IND"]
[SourceTitle "playchess.com"]
[Source "ChessBase"]
[SourceQuality "1"]
[TimeControl "5400+30"]

1. e4 {[%emt 0:02:04]} c5 {[%emt 0:00:05]} 2. Nf3 {[%emt 0:00:03]} d6 {[%emt 0:00:04]} 3. d4 {[%emt 0:00:04]} cxd4 {[%emt 0:00:01]} 4. Nxd4 {[%emt 0:00:06]} Nf6 {[%emt 0:00:05]} 5. Nc3 {[%emt 0:00:04]} a6 {[%emt 0:00:04]} 6. Be2 {[%emt 0:00:03]} e5 {[%emt 0:00:04]} 7. Nb3 {[%emt 0:00:03]} Be7 {[%emt 0:00:05]} 8. Bg5 {[%emt 0:01:07]} Nbd7 {[%emt 0:01:50]} 9. a4 {[%emt 0:01:06]} Rb8 {[%emt 0:10:39]} 10. O-O {[%emt 0:06:27]} b6 {[%emt 0:01:00]} 11. Bc4 {[%emt 0:03:14]} Bb7 {[%emt 0:01:38]} 12. Qe2 {[%emt 0:01:29]} Ra8 {[%emt 0:03:49]} 13. Rfd1 $16 {[%emt 0:17:52]} O-O {[%emt 0:01:20]} 14. Bxf6 {[%emt 0:24:41]} Nxf6 {[%emt 0:00:24]} 15. Nd2 {[%emt 0:03:29]} b5 {[%emt 0:06:33]} 16. axb5 {[%emt 0:25:20]} axb5 {[%emt 0:00:17]} 17. Rxa8 {[%emt 0:00:32]} Qxa8 {[%emt 0:00:06]} 18. Nxb5 {[%emt 0:02:27]} Nxe4 {[%emt 0:00:49]} 19. Nxe4 {[%emt 0:00:32]} Bxe4 {[%emt 0:00:10]} 20. Bd5 {[%emt 0:00:07]} Bxd5 {[%emt 0:05:56]} 21. Nc7 {[%emt 0:01:05]} Qa7 {[%emt 0:03:03]} 22. Nxd5 {[%emt 0:00:17]} Rb8 {[%emt 0:00:01]} 23. Qg4 {[%emt 0:04:40]} Rxb2 {[%emt 0:02:58]} 24. Nf6+ {[%emt 0:00:07]} Bxf6 {[%emt 0:01:04]} 25. Qc8+ {[%emt 0:00:01]} Bd8 {[%emt 0:00:09]} 26. Qxd8# {[%emt 0:00:01]} 1-0

[Event "IIFL WEALTH VI Mumbai Open 2021"]
[Site "Mumbai"]
[Date "2022.01.05"]
[Round "7.5"]
[White "Ruturaj Rushikesh Dhotre"]
[Black "Bajaj Prakhar"]
[Result "1-0"]
[ECO "B62"]
[WhiteElo "1547"]
[BlackElo "1663"]
[Annotator "NA"]
[PlyCount "111"]
[EventDate "2021.12.30"]
[EventType "swiss"]
[EventCountry "IND"]
[SourceTitle "playchess.com"]
[Source "ChessBase"]
[SourceQuality "1"]
[TimeControl "5400+30"]

1. e4 {[%emt 0:00:08]} c5 {[%emt 0:01:05]} 2. Nf3 {[%emt 0:00:05]} d6 {[%emt 0:00:25]} 3. d4 {[%emt 0:00:06]} cxd4 {[%emt 0:00:27]} 4. Nxd4 {[%emt 0:00:08]} Nf6 {[%emt 0:00:25]} 5. Nc3 {[%emt 0:00:06]} Nc6 {[%emt 0:00:34]} 6. Bg5 {[%emt 0:02:40]} e6 {[%emt 0:01:50]} 7. Be2 {[%emt 0:01:40]} Be7 {[%emt 0:07:46]} 8. Qd2 {[%emt 0:06:10]} Nxe4 {[%emt 0:20:53]} 9. Nxe4 {[%emt 0:00:11]} Bxg5 {[%emt 0:00:04]} 10. Nxg5 {[%emt 0:01:30]} Nxd4 {[%emt 0:00:14]} 11. Qxd4 {[%emt 0:00:25]} Qxg5 {[%emt 0:00:03]} 12. Qxd6 {[%emt 0:00:38]} Bd7 {[%emt 0:08:14]} 13. Bf3 {[%emt 0:10:30]} O-O-O {[%emt 0:14:11]} 14. O-O {[%emt 0:00:36]} Bc6 {[%emt 0:01:43]} 15. Qa3 {[%emt 0:00:57]} Bxf3 {[%emt 0:01:23]} 16. Qxf3 {[%emt 0:00:08]} Qf6 {[%emt 0:11:23]} 17. Qb3 {[%emt 0:07:45]} Rd6 {[%emt 0:05:09]} 18. a4 {[%emt 0:04:50]} Rb6 {[%emt 0:05:26]} 19. Qe3 {[%emt 0:04:44]} Kb8 {[%emt 0:02:19]} 20. a5 {[%emt 0:04:30]} Rxb2 {[%emt 0:02:14]} 21. a6 {[%emt 0:00:40]} Rd8 {[%emt 0:03:42]} 22. axb7 {[%emt 0:00:20]} Rxb7 {[%emt 0:00:17]} 23. Rfb1 {[%emt 0:01:48]} Qd4 {[%emt 0:01:46]} 24. Rxb7+ {[%emt 0:03:51]} Kxb7 {[%emt 0:00:01]} 25. Rb1+ {[%emt 0:00:11]} Kc7 {[%emt 0:07:19]} 26. Qf3 {[%emt 0:00:02]} Rd7 {[%emt 0:01:25]} 27. Qg3+ {[%emt 0:03:42]} Qd6 {[%emt 0:01:41]} 28. Qc3+ {[%emt 0:01:39]} Kd8 {[%emt 0:00:18]} 29. h3 {[%emt 0:00:25]} f6 {[%emt 0:00:30]} 30. Qf3 {[%emt 0:00:19]} Ke8 {[%emt 0:01:36]} 31. c4 {[%emt 0:01:11]} Kf8 {[%emt 0:00:52]} 32. Qh5 {[%emt 0:00:48]} g6 33. Qh6+ {[%emt 0:00:12]} Kg8 {[%emt 0:00:43]} 34. c5 {[%emt 0:00:21]} Qf8 {[%emt 0:00:56]} 35. Qe3 {[%emt 0:00:15]} Qe7 {[%emt 0:00:25]} 36. Qh6 {[%emt 0:01:16]} Qf8 {[%emt 0:00:11]} 37. Qe3 {[%emt 0:00:11]} Qe7 {[%emt 0:00:20]} 38. Qh6 {[%emt 0:05:11]} Rb7 {[%emt 0:00:28]} 39. Rc1 Rc7 {[%emt 0:00:00]} 40. Qe3 {[%emt 0:02:43]} Rc6 {[%emt 0:00:13]} 41. Qd4 Kg7 42. f4 {[%emt 0:03:16]} a5 {[%emt 0:00:42]} 43. Kh1 {[%emt 0:00:37]} Qa7 {[%emt 0:01:01]} 44. g4 {[%emt 0:01:14]} Qb7 {[%emt 0:01:06]} 45. Kg1 Qc7 {[%emt 0:01:05]} 46. g5 {[%emt 0:00:38]} e5 {[%emt 0:00:32]} 47. gxf6+ Kxf6 48. fxe5+ {[%emt 0:02:47]} Ke7 {[%emt 0:00:30]} 49. Qh4+ {[%emt 0:00:13]} Ke8 {[%emt 0:00:36]} 50. Qd4 {[%emt 0:00:23]} Qd7 {[%emt 0:00:29]} 51. Qe4 {[%emt 0:00:03]} Ke7 {[%emt 0:00:50]} 52. Rc2 {[%emt 0:05:29]} Qd1+ {[%emt 0:00:32]} 53. Kh2 {[%emt 0:00:07]} Qd7 {[%emt 0:00:32]} 54. Rf2 {[%emt 0:03:38]} Qc7 {[%emt 0:00:32]} 55. Qf4 {[%emt 0:00:58]} Rxc5 {[%emt 0:00:23]} 56. Qf7+ {[%emt 0:00:14]} 1-0

[Event "IIFL WEALTH VI Mumbai Open 2021"]
[Site "Mumbai"]
[Date "2022.01.06"]
[Round "8.1"]
[White "Adireddy Arjun"]
[Black "Rachit H Gurnani"]
[Result "1/2-1/2"]
[ECO "C98"]
[WhiteElo "1658"]
[BlackElo "1840"]
[Annotator "NA"]
[PlyCount "85"]
[EventDate "2021.12.30"]
[EventType "swiss"]
[EventCountry "IND"]
[SourceTitle "playchess.com"]
[Source "ChessBase"]
[SourceQuality "1"]
[TimeControl "5400+30"]

1. e4 {[%emt 0:00:25]} e5 {[%emt 0:00:27]} 2. Nf3 {[%emt 0:00:06]} Nc6 {[%emt 0:00:07]} 3. Bb5 {[%emt 0:00:05]} a6 {[%emt 0:00:07]} 4. Ba4 {[%emt 0:00:03]} Nf6 {[%emt 0:00:15]} 5. O-O {[%emt 0:00:06]} Be7 {[%emt 0:00:27]} 6. Re1 {[%emt 0:00:11]} b5 {[%emt 0:00:06]} 7. Bb3 {[%emt 0:00:03]} d6 {[%emt 0:00:06]} 8. c3 {[%emt 0:00:05]} O-O {[%emt 0:00:10]} 9. h3 {[%emt 0:00:02]} Na5 {[%emt 0:00:11]} 10. Bc2 {[%emt 0:00:11]} c5 {[%emt 0:00:09]} 11. d4 {[%emt 0:00:03]} Qc7 {[%emt 0:00:03]} 12. Nbd2 {[%emt 0:00:05]} Nc6 {[%emt 0:01:07]} 13. d5 {[%emt 0:00:06]} Nd8 {[%emt 0:00:24]} (13... Na5 $14) 14. a4 {[%emt 0:00:05]} Rb8 {[%emt 0:00:11]} 15. axb5 {[%emt 0:00:06]} axb5 {[%emt 0:00:11]} 16. b4 {[%emt 0:00:07]} Ne8 {[%emt 0:08:15]} 17. bxc5 {[%emt 0:22:33]} dxc5 {[%emt 0:11:00]} 18. c4 {[%emt 0:00:07]} b4 {[%emt 0:08:47]} 19. Qe2 {[%emt 0:03:01]} f6 {[%emt 0:17:52]} 20. Nb3 {[%emt 0:00:35]} Nd6 {[%emt 0:12:22]} 21. Be3 {[%emt 0:01:17]} N8b7 {[%emt 0:02:41]} 22. Ra7 {[%emt 0:00:23]} Nf7 {[%emt 0:00:59]} 23. Rea1 {[%emt 0:01:41]} Bd7 {[%emt 0:04:24]} 24. Ne1 {[%emt 0:01:36]} Qc8 {[%emt 0:02:00]} 25. f3 {[%emt 0:03:41]} Bd8 {[%emt 0:02:55]} 26. R1a6 {[%emt 0:08:05]} f5 {[%emt 0:03:17]} 27. exf5 {[%emt 0:10:09]} Bxf5 {[%emt 0:01:44]} 28. Nd3 {[%emt 0:00:10]} Bg5 {[%emt 0:05:08]} 29. Bxg5 {[%emt 0:09:01]} Nxg5 {[%emt 0:00:02]} 30. Qxe5 {[%emt 0:09:12]} Re8 $2 {[%emt 0:13:54]} (30... Nf7 31. Qg3 Qe8) 31. Qg3 {[%emt 0:02:12]} h6 {[%emt 0:04:26]} (31... Nf7 $142 32. Rb6 Bg6) 32. Rc6 {[%emt 0:02:26]} Qd8 $18 {[%emt 0:00:28]} 33. h4 {[%emt 0:09:53]} Nf7 {[%emt 0:00:36]} 34. Qf4 {[%emt 0:06:11]} Bxd3 {[%emt 0:01:53]} 35. Bxd3 {[%emt 0:00:08]} Ne5 {[%emt 0:00:00]} 36. Bg6 {[%emt 0:02:23]} Nxc6 {[%emt 0:01:11]} 37. Bxe8 {[%emt 0:02:08]} Nxa7 {[%emt 0:00:31]} 38. Qf7+ {[%emt 0:00:46]} Kh7 {[%emt 0:00:31]} 39. Qf5+ {[%emt 0:00:05]} Kh8 {[%emt 0:00:26]} 40. Qf8+ {[%emt 0:00:04]} Kh7 {[%emt 0:00:06]} 41. Qf5+ {[%emt 0:00:03]} Kh8 {[%emt 0:00:17]} 42. Qf8+ Kh7 {[%emt 0:00:09]} 43. Qf5+ {[%emt 0:00:08]} 1/2-1/2